[Event "*** SCC Grand Prix: Titled Tuesday Blitz"]
[Site "Chess.com"]
[Date "2020.10.06"]
[Round "5"]
[White "m_ezat"]
[Black "diablanni"]
[Result "1-0"]
[WhiteElo "2552"]
[BlackElo "2389"]
[TimeControl "180+1"]
[EndTime "10:56:18 PDT"]
[Termination "m_ezat won on time"]

1. d4 {[%clk 0:03:00.9]} 1... Nf6 {[%clk 0:02:59.2]} 2. c4 {[%clk 0:03:00]} 2...
c5 {[%clk 0:02:59.2]} 3. d5 {[%clk 0:02:59.2]} 3... b5 {[%clk 0:02:58.9]} 4.
cxb5 {[%clk 0:02:58.7]} 4... a6 {[%clk 0:02:58]} 5. Nc3 {[%clk 0:02:57.4]} 5...
axb5 {[%clk 0:02:53.6]} 6. e4 {[%clk 0:02:56.7]} 6... b4 {[%clk 0:02:43.4]} 7.
Nb5 {[%clk 0:02:56.7]} 7... d6 {[%clk 0:02:43.6]} 8. Bf4 {[%clk 0:02:44]} 8...
g5 {[%clk 0:02:41.7]} 9. Bxg5 {[%clk 0:02:42.6]} 9... Nxe4 {[%clk 0:02:41.2]}
10. Bf4 {[%clk 0:02:42.9]} 10... Nf6 {[%clk 0:02:34.4]} 11. Bd3 {[%clk
0:02:36.9]} 11... Bg7 {[%clk 0:02:19.9]} 12. Nf3 {[%clk 0:02:36.9]} 12... O-O
{[%clk 0:02:14]} 13. O-O {[%clk 0:02:28.5]} 13... Nbd7 {[%clk 0:02:13.5]} 14.
Nh4 {[%clk 0:02:25.5]} 14... Nb6 {[%clk 0:02:05.1]} 15. Nf5 {[%clk 0:02:19.1]}
15... Bxf5 {[%clk 0:02:04.6]} 16. Bxf5 {[%clk 0:02:08.5]} 16... Nbxd5 {[%clk
0:01:26.2]} 17. Bg3 {[%clk 0:02:06.8]} 17... Nb6 {[%clk 0:00:40.4]} 18. Re1
{[%clk 0:01:46]} 18... Re8 {[%clk 0:00:33.6]} 19. a4 {[%clk 0:01:41.3]} 19...
Ra5 {[%clk 0:00:29.1]} 20. Bh4 {[%clk 0:01:33]} 20... Nbd7 {[%clk 0:00:28]} 21.
b3 {[%clk 0:01:09.6]} 21... Nf8 {[%clk 0:00:27.2]} 22. Ra2 {[%clk 0:01:08.6]}
22... Ng6 {[%clk 0:00:25.4]} 23. Bg3 {[%clk 0:01:05.2]} 23... Ra6 {[%clk
0:00:25.2]} 24. Rae2 {[%clk 0:01:04]} 24... e6 {[%clk 0:00:18.2]} 25. Bxg6
{[%clk 0:00:56.7]} 25... hxg6 {[%clk 0:00:17.8]} 26. Nxd6 {[%clk 0:00:57]} 26...
Nd5 {[%clk 0:00:13.8]} 27. Qxd5 {[%clk 0:00:55.4]} 27... Re7 {[%clk 0:00:06.6]}
28. Qd1 {[%clk 0:00:48.2]} 28... Rd7 {[%clk 0:00:06.2]} 29. Rd2 {[%clk
0:00:48.7]} 29... Bf8 {[%clk 0:00:05]} 30. Nc4 {[%clk 0:00:46.9]} 1-0

[Event "*** SCC Grand Prix: Titled Tuesday Blitz"]
[Site "Chess.com"]
[Date "2020.10.06"]
[Round "5"]
[White "GukeshDommaraju"]
[Black "NikolaGry"]
[Result "1-0"]
[WhiteElo "2801"]
[BlackElo "2615"]
[TimeControl "180+1"]
[EndTime "10:56:22 PDT"]
[Termination "GukeshDommaraju won by checkmate"]

1. d4 {[%clk 0:03:00.9]} 1... d5 {[%clk 0:02:59.4]} 2. Nf3 {[%clk 0:03:00.7]}
2... Nc6 {[%clk 0:02:59.4]} 3. c4 {[%clk 0:02:56.8]} 3... Bg4 {[%clk 0:02:59]}
4. cxd5 {[%clk 0:02:46.8]} 4... Bxf3 {[%clk 0:02:58.7]} 5. gxf3 {[%clk
0:02:45.4]} 5... Qxd5 {[%clk 0:02:58.7]} 6. e3 {[%clk 0:02:45]} 6... e5 {[%clk
0:02:58.6]} 7. Nc3 {[%clk 0:02:44.9]} 7... Bb4 {[%clk 0:02:58.6]} 8. Bd2 {[%clk
0:02:45.3]} 8... Bxc3 {[%clk 0:02:58.5]} 9. bxc3 {[%clk 0:02:45.9]} 9... Qd6
{[%clk 0:02:58.7]} 10. Qb1 {[%clk 0:02:26.5]} 10... b6 {[%clk 0:02:54.8]} 11. f4
{[%clk 0:02:25.8]} 11... exf4 {[%clk 0:02:53.7]} 12. e4 {[%clk 0:02:21.4]} 12...
Rd8 {[%clk 0:02:37.1]} 13. e5 {[%clk 0:02:03]} 13... Qe6 {[%clk 0:02:30.7]} 14.
Bxf4 {[%clk 0:01:46.3]} 14... Nge7 {[%clk 0:02:27.5]} 15. Rg1 {[%clk 0:01:45.7]}
15... O-O {[%clk 0:02:14.6]} 16. Bd3 {[%clk 0:01:21.4]} 16... f6 {[%clk
0:01:31.1]} 17. Bxh7+ {[%clk 0:00:54.9]} 17... Kh8 {[%clk 0:01:29.6]} 18. Be4
{[%clk 0:00:46.9]} 18... fxe5 {[%clk 0:01:24]} 19. d5 {[%clk 0:00:35.7]} 19...
Nxd5 {[%clk 0:00:55.2]} 20. Bd2 {[%clk 0:00:29.8]} 20... Nf4 {[%clk 0:00:51]}
21. Rg3 {[%clk 0:00:25.2]} 21... Ne7 {[%clk 0:00:37.2]} 22. Qc2 {[%clk
0:00:16.4]} 22... Nf5 {[%clk 0:00:32.6]} 23. Rg5 {[%clk 0:00:16.3]} 23... Nh6
{[%clk 0:00:29.1]} 24. O-O-O {[%clk 0:00:15.1]} 24... Rd7 {[%clk 0:00:28.5]} 25.
Bxf4 {[%clk 0:00:12.4]} 25... Rxd1+ {[%clk 0:00:25.2]} 26. Qxd1 {[%clk
0:00:12.7]} 26... exf4 {[%clk 0:00:25.5]} 27. Qd4 {[%clk 0:00:12.9]} 27... Re8
{[%clk 0:00:24.1]} 28. Qxg7# {[%clk 0:00:12.6]} 1-0

[Event "*** SCC Grand Prix: Titled Tuesday Blitz"]
[Site "Chess.com"]
[Date "2020.10.06"]
[Round "5"]
[White "Denis_Makhnyov"]
[Black "johnathan113"]
[Result "0-1"]
[WhiteElo "2893"]
[BlackElo "2601"]
[TimeControl "180+1"]
[EndTime "10:56:23 PDT"]
[Termination "johnathan113 won by checkmate"]

1. d4 {[%clk 0:02:59.8]} 1... Nf6 {[%clk 0:03:00]} 2. c4 {[%clk 0:02:59.7]} 2...
g6 {[%clk 0:03:00.5]} 3. g3 {[%clk 0:02:59.8]} 3... Bg7 {[%clk 0:03:01.4]} 4.
Bg2 {[%clk 0:03:00.4]} 4... O-O {[%clk 0:03:01.3]} 5. Nc3 {[%clk 0:03:00.5]}
5... d6 {[%clk 0:03:01.3]} 6. Nf3 {[%clk 0:03:01.1]} 6... Nc6 {[%clk 0:03:01.9]}
7. O-O {[%clk 0:03:01.6]} 7... a6 {[%clk 0:03:02.5]} 8. Bf4 {[%clk 0:02:39.8]}
8... h6 {[%clk 0:02:57]} 9. Rc1 {[%clk 0:02:38.2]} 9... Rb8 {[%clk 0:02:51.3]}
10. d5 {[%clk 0:02:17.1]} 10... e5 {[%clk 0:02:44.7]} 11. Bd2 {[%clk 0:02:05.8]}
11... Ne7 {[%clk 0:02:44.1]} 12. e4 {[%clk 0:02:05.5]} 12... c6 {[%clk 0:02:44]}
13. b3 {[%clk 0:01:27.9]} 13... b5 {[%clk 0:02:43.1]} 14. dxc6 {[%clk
0:01:23.4]} 14... bxc4 {[%clk 0:02:35.4]} 15. Nd5 {[%clk 0:01:16.6]} 15... Nxc6
{[%clk 0:02:31.3]} 16. Rxc4 {[%clk 0:01:13.5]} 16... Bb7 {[%clk 0:02:30.8]} 17.
Nxf6+ {[%clk 0:01:07.1]} 17... Qxf6 {[%clk 0:02:30]} 18. Be3 {[%clk 0:01:07.1]}
18... Ne7 {[%clk 0:02:24.8]} 19. Nd2 {[%clk 0:00:59.9]} 19... Qe6 {[%clk
0:02:19.3]} 20. Qe2 {[%clk 0:00:52.3]} 20... f5 {[%clk 0:02:13.4]} 21. Ba7
{[%clk 0:00:47.4]} 21... Ra8 {[%clk 0:02:02.9]} 22. exf5 {[%clk 0:00:45.4]}
22... gxf5 {[%clk 0:01:51.3]} 23. Bxb7 {[%clk 0:00:44.9]} 23... Rxa7 {[%clk
0:01:51.9]} 24. Bg2 {[%clk 0:00:45.7]} 24... d5 {[%clk 0:01:50.3]} 25. Rc5
{[%clk 0:00:45.8]} 25... e4 {[%clk 0:01:50.1]} 26. Rfc1 {[%clk 0:00:43.6]} 26...
f4 {[%clk 0:01:48.1]} 27. gxf4 {[%clk 0:00:36.6]} 27... Rxf4 {[%clk 0:01:47.9]}
28. Qe3 {[%clk 0:00:35.8]} 28... Rg4 {[%clk 0:01:38.5]} 29. Nf1 {[%clk
0:00:25.7]} 29... d4 {[%clk 0:01:24.6]} 30. Qh3 {[%clk 0:00:23.5]} 30... Ng6
{[%clk 0:01:11.9]} 31. Rc6 {[%clk 0:00:21.7]} 31... Nf4 {[%clk 0:01:11.6]} 32.
Rxe6 {[%clk 0:00:15.9]} 32... Nxh3+ {[%clk 0:01:11.9]} 33. Kh1 {[%clk
0:00:16.2]} 33... Nxf2+ {[%clk 0:01:12.8]} 34. Kg1 {[%clk 0:00:16.2]} 34... Rf7
{[%clk 0:01:02.9]} 35. Ng3 {[%clk 0:00:13.6]} 35... d3 {[%clk 0:01:03]} 36. Rc8+
{[%clk 0:00:12.4]} 36... Kh7 {[%clk 0:01:02.9]} 37. Nxe4 {[%clk 0:00:11.6]}
37... Nh3+ {[%clk 0:00:59.9]} 38. Kh1 {[%clk 0:00:10.1]} 38... Rf1+ {[%clk
0:01:00.5]} 39. Bxf1 {[%clk 0:00:10.3]} 39... Rg1# {[%clk 0:01:01.4]} 0-1

[Event "*** SCC Grand Prix: Titled Tuesday Blitz"]
[Site "Chess.com"]
[Date "2020.10.06"]
[Round "5"]
[White "albi1999"]
[Black "ajdemipopushi"]
[Result "1-0"]
[WhiteElo "2600"]
[BlackElo "2346"]
[TimeControl "180+1"]
[EndTime "10:56:23 PDT"]
[Termination "albi1999 won by resignation"]

1. d4 {[%clk 0:02:57.3]} 1... Nf6 {[%clk 0:02:59.6]} 2. c4 {[%clk 0:02:53.7]}
2... c5 {[%clk 0:02:59.7]} 3. d5 {[%clk 0:02:51.1]} 3... b5 {[%clk 0:03:00]} 4.
cxb5 {[%clk 0:02:48]} 4... a6 {[%clk 0:03:00.3]} 5. bxa6 {[%clk 0:02:45.6]} 5...
Bxa6 {[%clk 0:03:00]} 6. Nc3 {[%clk 0:02:44]} 6... g6 {[%clk 0:03:00.5]} 7. e4
{[%clk 0:02:42.2]} 7... Bxf1 {[%clk 0:03:01.4]} 8. Kxf1 {[%clk 0:02:41.3]} 8...
d6 {[%clk 0:03:01.7]} 9. Nf3 {[%clk 0:02:37.8]} 9... Bg7 {[%clk 0:03:02]} 10. g3
{[%clk 0:02:38.4]} 10... Nbd7 {[%clk 0:03:02.3]} 11. Kg2 {[%clk 0:02:38.5]}
11... O-O {[%clk 0:03:03]} 12. a4 {[%clk 0:02:39.4]} 12... Ra6 {[%clk
0:03:02.5]} 13. Re1 {[%clk 0:02:32.2]} 13... Qa8 {[%clk 0:02:49.3]} 14. Ra3
{[%clk 0:02:30.2]} 14... Nb6 {[%clk 0:02:46]} 15. b3 {[%clk 0:02:13.3]} 15...
Rc8 {[%clk 0:02:41.1]} 16. Bd2 {[%clk 0:01:45.3]} 16... Nfd7 {[%clk 0:02:35.2]}
17. Qc2 {[%clk 0:01:43]} 17... c4 {[%clk 0:02:27.4]} 18. b4 {[%clk 0:01:42.4]}
18... Bxc3 {[%clk 0:02:26.3]} 19. Bxc3 {[%clk 0:01:39.5]} 19... Rxa4 {[%clk
0:02:25.9]} 20. Raa1 {[%clk 0:01:37.2]} 20... f6 {[%clk 0:02:18.3]} 21. Nd4
{[%clk 0:01:36.9]} 21... Ne5 {[%clk 0:02:08.2]} 22. Reb1 {[%clk 0:01:18.7]}
22... f5 {[%clk 0:01:22.4]} 23. b5 {[%clk 0:00:57.9]} 23... fxe4 {[%clk
0:01:15]} 24. Nc6 {[%clk 0:00:57.2]} 24... Rc7 {[%clk 0:00:18.1]} 25. Qxe4
{[%clk 0:00:49.9]} 25... Rxa1 {[%clk 0:00:16.1]} 26. Rxa1 {[%clk 0:00:48.8]}
26... Qf8 {[%clk 0:00:14]} 27. Nxe5 {[%clk 0:00:47.8]} 27... dxe5 {[%clk
0:00:12.7]} 28. Qxe5 {[%clk 0:00:48.2]} 28... Rd7 {[%clk 0:00:07.9]} 29. Qh8+
{[%clk 0:00:42.6]} 29... Kf7 {[%clk 0:00:07.9]} 30. Qxh7+ {[%clk 0:00:43.5]}
30... Ke8 {[%clk 0:00:08.3]} 31. Qxg6+ {[%clk 0:00:43.8]} 31... Kd8 {[%clk
0:00:08.7]} 32. Qxb6+ {[%clk 0:00:43.8]} 1-0

[Event "*** SCC Grand Prix: Titled Tuesday Blitz"]
[Site "Chess.com"]
[Date "2020.10.06"]
[Round "5"]
[White "Kaua18"]
[Black "NotFischer"]
[Result "0-1"]
[WhiteElo "2436"]
[BlackElo "2288"]
[TimeControl "180+1"]
[EndTime "10:56:23 PDT"]
[Termination "NotFischer won on time"]

1. e4 {[%clk 0:02:59.4]} 1... d5 {[%clk 0:02:59.5]} 2. exd5 {[%clk 0:02:59.2]}
2... Nf6 {[%clk 0:02:59.3]} 3. Bb5+ {[%clk 0:02:58.3]} 3... Nbd7 {[%clk
0:02:58.8]} 4. Nc3 {[%clk 0:02:57.2]} 4... a6 {[%clk 0:02:58.9]} 5. Bc4 {[%clk
0:02:53]} 5... b5 {[%clk 0:02:57.5]} 6. Bb3 {[%clk 0:02:52]} 6... Nb6 {[%clk
0:02:57]} 7. Nf3 {[%clk 0:02:45.2]} 7... Bb7 {[%clk 0:02:56.9]} 8. O-O {[%clk
0:02:44.1]} 8... Nfxd5 {[%clk 0:02:57]} 9. Re1 {[%clk 0:02:43.2]} 9... e6 {[%clk
0:02:56.8]} 10. Ne5 {[%clk 0:02:41.2]} 10... Be7 {[%clk 0:02:53.3]} 11. Qh5
{[%clk 0:02:36.5]} 11... O-O {[%clk 0:02:30.8]} 12. d3 {[%clk 0:02:36.3]} 12...
Nxc3 {[%clk 0:02:03.6]} 13. bxc3 {[%clk 0:02:37.2]} 13... Nd5 {[%clk 0:02:03.5]}
14. c4 {[%clk 0:02:28.5]} 14... Nf6 {[%clk 0:02:02.1]} 15. Qh3 {[%clk 0:02:26]}
15... Qd4 {[%clk 0:01:54.5]} 16. Bg5 {[%clk 0:01:44.7]} 16... Ng4 {[%clk
0:00:53.6]} 17. Nxg4 {[%clk 0:00:43.7]} 17... Bxg5 {[%clk 0:00:52.2]} 18. Rad1
{[%clk 0:00:35.3]} 18... Rad8 {[%clk 0:00:48.9]} 19. cxb5 {[%clk 0:00:34.6]}
19... axb5 {[%clk 0:00:48.5]} 20. Ne3 {[%clk 0:00:34.3]} 20... c5 {[%clk
0:00:43.5]} 21. Qg4 {[%clk 0:00:20.2]} 21... Bxe3 {[%clk 0:00:40.9]} 22. Qe2
{[%clk 0:00:15.2]} 22... Bh6 {[%clk 0:00:38.5]} 23. g3 {[%clk 0:00:03.8]} 23...
g6 {[%clk 0:00:37.9]} 24. h4 {[%clk 0:00:02]} 24... Bg7 {[%clk 0:00:37.6]} 25.
Qd2 {[%clk 0:00:01.5]} 25... c4 {[%clk 0:00:37.1]} 0-1

[Event "*** SCC Grand Prix: Titled Tuesday Blitz"]
[Site "Chess.com"]
[Date "2020.10.06"]
[Round "5"]
[White "PauloCesarCosta_sad"]
[Black "Orest_Vovk"]
[Result "1/2-1/2"]
[WhiteElo "2291"]
[BlackElo "2446"]
[TimeControl "180+1"]
[EndTime "10:56:24 PDT"]
[Termination "Game drawn by repetition"]

1. Nf3 {[%clk 0:03:00.9]} 1... Nc6 {[%clk 0:02:51]} 2. d4 {[%clk 0:02:59.2]}
2... e5 {[%clk 0:02:51]} 3. dxe5 {[%clk 0:02:57.4]} 3... Qe7 {[%clk 0:02:50.5]}
4. Nc3 {[%clk 0:02:52.4]} 4... Nxe5 {[%clk 0:02:49.7]} 5. Nxe5 {[%clk
0:02:51.7]} 5... Qxe5 {[%clk 0:02:47.7]} 6. Be3 {[%clk 0:02:47.5]} 6... Bc5
{[%clk 0:02:44.1]} 7. Bxc5 {[%clk 0:02:46.6]} 7... Qxc5 {[%clk 0:02:44.9]} 8. e3
{[%clk 0:02:44.8]} 8... Nf6 {[%clk 0:02:44.1]} 9. Qd4 {[%clk 0:02:41.1]} 9...
Qxd4 {[%clk 0:02:43.3]} 10. exd4 {[%clk 0:02:41.4]} 10... a6 {[%clk 0:02:41.3]}
11. Bd3 {[%clk 0:02:40.8]} 11... O-O {[%clk 0:02:41.6]} 12. O-O {[%clk
0:02:38.2]} 12... d6 {[%clk 0:02:40.8]} 13. Rfe1 {[%clk 0:02:35.7]} 13... Bd7
{[%clk 0:02:39.8]} 14. Ne4 {[%clk 0:02:33.1]} 14... Nxe4 {[%clk 0:02:30.3]} 15.
Bxe4 {[%clk 0:02:29.9]} 15... c6 {[%clk 0:02:30]} 16. Re3 {[%clk 0:02:24]} 16...
Rfe8 {[%clk 0:02:28]} 17. Rae1 {[%clk 0:02:23.6]} 17... d5 {[%clk 0:02:16.5]}
18. Bd3 {[%clk 0:02:13.7]} 18... Rxe3 {[%clk 0:02:16.3]} 19. Rxe3 {[%clk
0:02:13.6]} 19... Re8 {[%clk 0:02:16.4]} 20. Rxe8+ {[%clk 0:02:12.1]} 20... Bxe8
{[%clk 0:02:17.3]} 21. Kf1 {[%clk 0:02:09.4]} 21... h6 {[%clk 0:02:16.7]} 22.
Ke2 {[%clk 0:02:09]} 22... Kf8 {[%clk 0:02:17.1]} 23. Ke3 {[%clk 0:02:02.3]}
23... Ke7 {[%clk 0:02:16.7]} 24. c3 {[%clk 0:02:01.6]} 24... Kd6 {[%clk
0:02:14.9]} 25. b4 {[%clk 0:01:45.8]} 25... Bd7 {[%clk 0:02:13.4]} 26. g3 {[%clk
0:01:41.7]} 26... Bc8 {[%clk 0:02:12.7]} 27. Kf4 {[%clk 0:01:38.7]} 27... b6
{[%clk 0:02:09.5]} 28. Bf5 {[%clk 0:01:33.2]} 28... Be6 {[%clk 0:02:09.1]} 29.
Bxe6 {[%clk 0:01:22.7]} 29... Kxe6 {[%clk 0:02:08.8]} 30. h4 {[%clk 0:01:21.8]}
30... Kf6 {[%clk 0:02:05]} 31. Kg4 {[%clk 0:01:18.5]} 31... g5 {[%clk
0:01:50.2]} 32. hxg5+ {[%clk 0:01:15.3]} 32... hxg5 {[%clk 0:01:49.9]} 33. f4
{[%clk 0:01:09.5]} 33... gxf4 {[%clk 0:01:48.7]} 34. gxf4 {[%clk 0:01:02.3]}
34... Kg6 {[%clk 0:01:47.1]} 35. f5+ {[%clk 0:00:58.6]} 35... Kh6 {[%clk
0:01:20.3]} 36. Kh4 {[%clk 0:00:47.6]} 36... Kg7 {[%clk 0:01:11.9]} 37. Kg5
{[%clk 0:00:47.3]} 37... f6+ {[%clk 0:01:10.5]} 38. Kh5 {[%clk 0:00:45.9]} 38...
Kh7 {[%clk 0:01:08.1]} 39. Kg4 {[%clk 0:00:42.7]} 39... Kh6 {[%clk 0:01:07.5]}
40. Kh4 {[%clk 0:00:42.7]} 40... a5 {[%clk 0:01:07]} 41. a3 {[%clk 0:00:42.1]}
41... a4 {[%clk 0:01:01.5]} 42. Kg4 {[%clk 0:00:40.4]} 42... Kg7 {[%clk
0:00:57.9]} 43. Kh5 {[%clk 0:00:36.8]} 43... Kh7 {[%clk 0:00:56.7]} 44. Kg4
{[%clk 0:00:35.9]} 44... Kh6 {[%clk 0:00:56.6]} 45. Kh4 {[%clk 0:00:36.2]} 45...
Kg7 {[%clk 0:00:54.9]} 46. Kh5 {[%clk 0:00:36]} 46... Kh7 {[%clk 0:00:53.7]} 47.
Kg4 {[%clk 0:00:36.1]} 47... Kh6 {[%clk 0:00:53.3]} 48. Kh4 {[%clk 0:00:36.3]}
48... Kg7 {[%clk 0:00:52.8]} 49. Kh5 {[%clk 0:00:34.3]} 1/2-1/2

[Event "*** SCC Grand Prix: Titled Tuesday Blitz"]
[Site "Chess.com"]
[Date "2020.10.06"]
[Round "5"]
[White "Itk04"]
[Black "seorobert1971"]
[Result "0-1"]
[WhiteElo "2461"]
[BlackElo "2709"]
[TimeControl "180+1"]
[EndTime "10:56:27 PDT"]
[Termination "seorobert1971 won on time"]

1. d4 {[%clk 0:03:00.9]} 1... Nf6 {[%clk 0:02:59.9]} 2. c4 {[%clk 0:03:01.4]}
2... g6 {[%clk 0:02:59.8]} 3. Nc3 {[%clk 0:03:00]} 3... d5 {[%clk 0:02:59.8]} 4.
cxd5 {[%clk 0:02:57.4]} 4... Nxd5 {[%clk 0:03:00.7]} 5. e4 {[%clk 0:02:58]} 5...
Nxc3 {[%clk 0:03:00.7]} 6. bxc3 {[%clk 0:02:58.9]} 6... Bg7 {[%clk 0:03:01]} 7.
Bc4 {[%clk 0:02:59.5]} 7... c5 {[%clk 0:03:00.4]} 8. Ne2 {[%clk 0:02:59.8]} 8...
Nc6 {[%clk 0:02:59.6]} 9. Be3 {[%clk 0:02:58.8]} 9... Qc7 {[%clk 0:02:52.4]} 10.
O-O {[%clk 0:02:58]} 10... O-O {[%clk 0:02:51.1]} 11. Rc1 {[%clk 0:01:56.8]}
11... Rd8 {[%clk 0:02:47.6]} 12. h4 {[%clk 0:01:40.3]} 12... b6 {[%clk
0:02:35.4]} 13. h5 {[%clk 0:01:39]} 13... Na5 {[%clk 0:02:35.2]} 14. Bd3 {[%clk
0:01:28.4]} 14... Bd7 {[%clk 0:02:10.5]} 15. d5 {[%clk 0:01:11.7]} 15... c4
{[%clk 0:02:07.8]} 16. Bc2 {[%clk 0:01:08.5]} 16... e6 {[%clk 0:02:07.6]} 17. h6
{[%clk 0:01:07.6]} 17... Bf8 {[%clk 0:02:00.8]} 18. Bg5 {[%clk 0:01:04.7]} 18...
Re8 {[%clk 0:01:58.5]} 19. Ng3 {[%clk 0:00:44.1]} 19... Bc5 {[%clk 0:01:40.9]}
20. Qf3 {[%clk 0:00:41.2]} 20... Bd6 {[%clk 0:01:26.2]} 21. e5 {[%clk
0:00:17.6]} 21... Bxe5 {[%clk 0:01:22.4]} 22. Ne4 {[%clk 0:00:17.8]} 22... f5
{[%clk 0:01:19.8]} 23. Nf6+ {[%clk 0:00:05.8]} 23... Bxf6 {[%clk 0:01:19.7]} 24.
Bxf6 {[%clk 0:00:06.7]} 24... e5 {[%clk 0:01:17.3]} 25. Rcd1 {[%clk 0:00:03.2]}
25... Qd6 {[%clk 0:01:16.9]} 26. Bg5 {[%clk 0:00:02.7]} 26... Nb7 {[%clk
0:01:16.2]} 27. Bc1 {[%clk 0:00:02.5]} 27... Nc5 {[%clk 0:01:14.3]} 28. Ba3
{[%clk 0:00:02]} 28... b5 {[%clk 0:01:11.8]} 29. Rfe1 {[%clk 0:00:02.3]} 29...
a5 {[%clk 0:01:10.2]} 30. Qg3 {[%clk 0:00:02.8]} 30... Rac8 {[%clk 0:01:04.1]}
31. Qg5 {[%clk 0:00:02.6]} 31... Kf7 {[%clk 0:00:58.3]} 32. f4 {[%clk
0:00:02.7]} 32... e4 {[%clk 0:00:56.6]} 33. Bc1 {[%clk 0:00:02]} 33... Qf6
{[%clk 0:00:56.1]} 34. Qg3 {[%clk 0:00:01.6]} 34... b4 {[%clk 0:00:53.5]} 35.
cxb4 {[%clk 0:00:01.5]} 35... axb4 {[%clk 0:00:54.4]} 36. Be3 {[%clk 0:00:01.5]}
36... Nd3 {[%clk 0:00:54.3]} 0-1

[Event "*** SCC Grand Prix: Titled Tuesday Blitz"]
[Site "Chess.com"]
[Date "2020.10.06"]
[Round "5"]
[White "lukas_111111"]
[Black "Kacparov"]
[Result "0-1"]
[WhiteElo "2514"]
[BlackElo "2742"]
[TimeControl "180+1"]
[EndTime "10:56:27 PDT"]
[Termination "Kacparov won by resignation"]

1. d4 {[%clk 0:03:00.9]} 1... Nf6 {[%clk 0:02:20.9]} 2. c4 {[%clk 0:03:00.2]}
2... e6 {[%clk 0:02:19.2]} 3. Nc3 {[%clk 0:03:00.1]} 3... Bb4 {[%clk 0:02:17.9]}
4. Qc2 {[%clk 0:03:00.4]} 4... d5 {[%clk 0:02:16.9]} 5. a3 {[%clk 0:02:59.6]}
5... Bxc3+ {[%clk 0:02:17.1]} 6. Qxc3 {[%clk 0:03:00.5]} 6... O-O {[%clk
0:02:16.8]} 7. Nf3 {[%clk 0:03:00.8]} 7... Ne4 {[%clk 0:02:16.7]} 8. Qc2 {[%clk
0:03:00.3]} 8... Nd7 {[%clk 0:02:15.5]} 9. Bf4 {[%clk 0:02:59.5]} 9... c6 {[%clk
0:02:15.1]} 10. e3 {[%clk 0:02:59.4]} 10... Ndf6 {[%clk 0:02:07.2]} 11. Bd3
{[%clk 0:02:58.8]} 11... b6 {[%clk 0:02:02.5]} 12. O-O {[%clk 0:02:56.4]} 12...
Bb7 {[%clk 0:02:01.7]} 13. Ne5 {[%clk 0:02:56.5]} 13... h6 {[%clk 0:01:56.1]}
14. f3 {[%clk 0:02:55.4]} 14... Nd6 {[%clk 0:01:54.4]} 15. cxd5 {[%clk
0:02:55.4]} 15... Nxd5 {[%clk 0:01:46.9]} 16. Nxc6 {[%clk 0:02:32.1]} 16... Bxc6
{[%clk 0:01:45.9]} 17. Qxc6 {[%clk 0:02:32.6]} 17... Nxf4 {[%clk 0:01:44.9]} 18.
exf4 {[%clk 0:02:33.5]} 18... Nf5 {[%clk 0:01:18.6]} 19. Kh1 {[%clk 0:02:33.2]}
19... Qxd4 {[%clk 0:01:16.5]} 20. Qe4 {[%clk 0:02:22.8]} 20... Rad8 {[%clk
0:01:05.2]} 21. Rfd1 {[%clk 0:02:17.1]} 21... g6 {[%clk 0:00:48.5]} 22. Rd2
{[%clk 0:01:57.3]} 22... Qf6 {[%clk 0:00:40.3]} 23. g3 {[%clk 0:01:40.5]} 23...
Rd7 {[%clk 0:00:39.5]} 24. Rad1 {[%clk 0:01:27.1]} 24... Rfd8 {[%clk 0:00:39.5]}
25. Qe2 {[%clk 0:01:25]} 25... Nd4 {[%clk 0:00:38.8]} 26. Qf1 {[%clk 0:00:57.5]}
26... Nb3 {[%clk 0:00:38.3]} 27. Rc2 {[%clk 0:00:57.7]} 27... Nc5 {[%clk
0:00:31.1]} 28. Be2 {[%clk 0:00:57.9]} 28... Rxd1 {[%clk 0:00:30.4]} 29. Bxd1
{[%clk 0:00:58.8]} 29... Qd4 {[%clk 0:00:29.7]} 30. Be2 {[%clk 0:00:58.8]} 30...
Qe3 {[%clk 0:00:26]} 31. b4 {[%clk 0:00:36.8]} 31... Nb3 {[%clk 0:00:25.4]} 32.
Bc4 {[%clk 0:00:27.5]} 32... Nd2 {[%clk 0:00:24.6]} 33. Qe2 {[%clk 0:00:27.4]}
33... Nxc4 {[%clk 0:00:23.7]} 34. Qxc4 {[%clk 0:00:24.6]} 34... Qxf3+ {[%clk
0:00:23.7]} 35. Kg1 {[%clk 0:00:23.2]} 35... Rd1+ {[%clk 0:00:23.6]} 0-1

[Event "*** SCC Grand Prix: Titled Tuesday Blitz"]
[Site "Chess.com"]
[Date "2020.10.06"]
[Round "5"]
[White "GmSergioBarrientos"]
[Black "Larina_Marija"]
[Result "0-1"]
[WhiteElo "2679"]
[BlackElo "2235"]
[TimeControl "180+1"]
[EndTime "10:56:28 PDT"]
[Termination "Larina_Marija won by resignation"]

1. e4 {[%clk 0:03:00.9]} 1... c6 {[%clk 0:02:59.8]} 2. c4 {[%clk 0:02:59.1]}
2... d5 {[%clk 0:02:59.6]} 3. exd5 {[%clk 0:02:58.8]} 3... cxd5 {[%clk
0:02:59.9]} 4. d4 {[%clk 0:02:59.1]} 4... Nf6 {[%clk 0:02:58.2]} 5. Nc3 {[%clk
0:02:58.7]} 5... e6 {[%clk 0:02:54.8]} 6. Nf3 {[%clk 0:02:55.3]} 6... Nc6 {[%clk
0:02:54.9]} 7. cxd5 {[%clk 0:02:55.4]} 7... Nxd5 {[%clk 0:02:48.6]} 8. Bc4
{[%clk 0:02:55]} 8... Nb6 {[%clk 0:02:44.6]} 9. Bb3 {[%clk 0:02:52.3]} 9... Be7
{[%clk 0:02:39.2]} 10. O-O {[%clk 0:02:52]} 10... O-O {[%clk 0:02:39.4]} 11. d5
{[%clk 0:02:46.9]} 11... exd5 {[%clk 0:02:36.3]} 12. Nxd5 {[%clk 0:02:47]} 12...
Nxd5 {[%clk 0:02:36.8]} 13. Bxd5 {[%clk 0:02:47.9]} 13... Bf5 {[%clk 0:02:31.1]}
14. Be3 {[%clk 0:02:27.5]} 14... Nb4 {[%clk 0:02:19.4]} 15. Bb3 {[%clk
0:02:12.8]} 15... a5 {[%clk 0:02:09.9]} 16. Nd4 {[%clk 0:02:07.1]} 16... Bd3
{[%clk 0:02:06.8]} 17. Re1 {[%clk 0:02:04.3]} 17... a4 {[%clk 0:02:04.9]} 18.
Bxa4 {[%clk 0:01:52.5]} 18... Bf6 {[%clk 0:01:51.5]} 19. Qb3 {[%clk 0:01:43.8]}
19... Qa5 {[%clk 0:01:44.6]} 20. Bd7 {[%clk 0:01:08]} 20... Rfd8 {[%clk
0:01:34.8]} 21. Bf5 {[%clk 0:01:01.3]} 21... Bxd4 {[%clk 0:01:22.1]} 22. Bxd3
{[%clk 0:00:56.4]} 22... Nxd3 {[%clk 0:01:19.4]} 23. Qxd3 {[%clk 0:00:56.4]}
23... Bxb2 {[%clk 0:01:16.4]} 24. Qb3 {[%clk 0:00:56.4]} 24... Bxa1 {[%clk
0:01:14.6]} 25. Rxa1 {[%clk 0:00:57.3]} 25... b5 {[%clk 0:01:11.2]} 26. h3
{[%clk 0:00:52.4]} 26... h6 {[%clk 0:01:10.2]} 27. a3 {[%clk 0:00:51.6]} 27...
Qa4 {[%clk 0:01:05.6]} 28. Qxa4 {[%clk 0:00:46.6]} 28... Rxa4 {[%clk 0:01:02.8]}
29. Bc5 {[%clk 0:00:46.6]} 29... Rd5 {[%clk 0:00:59.1]} 30. Be7 {[%clk
0:00:45.6]} 30... Rd3 {[%clk 0:00:56.1]} 31. Rb1 {[%clk 0:00:44.1]} 31... Rd5
{[%clk 0:00:54.4]} 32. Bb4 {[%clk 0:00:42.8]} 32... f5 {[%clk 0:00:52.3]} 33.
Re1 {[%clk 0:00:42.1]} 33... Kf7 {[%clk 0:00:50.7]} 34. Re7+ {[%clk 0:00:41.1]}
34... Kf6 {[%clk 0:00:50.4]} 35. Rc7 {[%clk 0:00:39.8]} 35... g5 {[%clk
0:00:43.4]} 36. g3 {[%clk 0:00:38.9]} 36... Ra6 {[%clk 0:00:38.3]} 37. Kg2
{[%clk 0:00:37.8]} 37... Re6 {[%clk 0:00:38.4]} 38. Bc3+ {[%clk 0:00:35.6]}
38... Kg6 {[%clk 0:00:35.8]} 39. Rg7+ {[%clk 0:00:35.4]} 39... Kh5 {[%clk
0:00:35.8]} 40. Kf3 {[%clk 0:00:34.7]} 40... Rd3+ {[%clk 0:00:33.8]} 41. Kg2
{[%clk 0:00:34.7]} 41... Rxc3 {[%clk 0:00:33.9]} 0-1